Cogmind - Beta 14 @@@ ROGUE MODE // 2024.09.25 @ 19:22:52 Player: star Result: Self-destructed Performance ------------- Evolutions (3) 1500 Regions Visited (6) 1200 Robots Destroyed (88) 440 Value Destroyed (2776) 2776 Prototype IDs (26) 520 Alien Tech Used (0) 0 Bonus (147) 147 TOTAL SCORE: 6583 Bonus ------- High Alert Combat Kills 572 Follower Combat Kills 14 Friendly Fire -439 Cogmind --------- Core Integrity 249/700 Matter 75/300 Energy 38/100 System Corruption 3% Temperature Cool (0) Movement Treading (250) Ox1 Location -7/Factory Parts ------- > --- POWER (1) -------- (None) > --- PROPULSION (5) --- Armored Medium Treads > --- UTILITY (5) ------ Large Storage Unit Hacking Suite > --- WEAPON (2) ------- Guided Plasma Cannon > --- INVENTORY (15) --- Armored Medium Treads Improved Heat Sink Experimental Sensor Array Transmission Jammer Makeshift Cloaking Device Improved Light Armor Plating Medium Reactive Plating Recalibrator Heavy Missile Launcher Rocket Array Plasma Cutter Makeshift Axe Makeshift Sword Peak State ------------ > --- POWER ------------ Improved Deuterium Engine > --- PROPULSION ------- Improved Treads Armored Medium Treads Armored Medium Treads Armored Medium Treads Armored Medium Treads > --- UTILITY ---------- Large Storage Unit Targeting Computer Reactive Plating Reactive Plating Medium Insulated Plating > --- WEAPON ----------- Enhanced Autogun Rocket Array > --- INVENTORY -------- Improved Hover Unit Improved Heat Sink Experimental Sensor Array Makeshift Cloaking Device Hacking Suite Hacking Suite System Shield Recalibrator Guided Plasma Cannon Heavy Missile Launcher Heavy Missile Launcher Heavy Missile Launcher Plasma Cutter Makeshift Axe Makeshift Sword [Rating: 57] Favorites ----------- Power Light Angular Momentum Engine Engine Light Angular Momentum Engine Propulsion Improved Treads Treads Improved Treads Leg Carbon-fiber Leg Wheel Wheel Utility Large Storage Unit Device Improved Heat Sink Storage Large Storage Unit Processor Targeting Computer Hackware Hacking Suite Protection Hardened Medium Armor Plating Weapon Enhanced Autogun Energy Gun Beamcaster Energy Cannon Guided Plasma Cannon Ballistic Gun Enhanced Autogun Launcher Mini Grenade Launcher Slashing Weapon Makeshift Axe Build | -11 -10 -10 -10 -9 -8 -7 ------- Run | Yrd Mat Min Exi Min Mat Fac Slots Evolved 6 | . . . . . 4 2 Power . | . . . . . . . Propulsion 3 | . . . . . 3 . Utility 3 | . . . . . 1 2 Weapon . | . . . . . . . Parts Attached 88 | 5 5 10 3 . 31 34 Power 4 | 1 . 1 . . 1 1 Engine 4 | 1 . 1 . . 1 1 Core . | . . . . . . . Reactor . | . . . . . . . Propulsion 29 | 2 . 4 1 . 15 7 Treads 20 | . . . . . 13 7 Leg 7 | . . 4 1 . 2 . Wheel 2 | 2 . . . . . . Hover . | . . . . . . . Flight . | . . . . . . . Utility 14 | . 2 . . . 2 10 Device 2 | . . . . . 1 1 Storage 1 | . 1 . . . . . Processor 1 | . 1 . . . . . Hackware 3 | . . . . . . 3 Protection 7 | . . . . . 1 6 Artifact . | . . . . . . . Weapon 41 | 2 3 5 2 . 13 16 Energy Gun 9 | 2 1 4 1 . 1 . Energy Cannon 3 | . . . . . 2 1 Ballistic Gun 15 | . . . . . 7 8 Ballistic Cannon . | . . . . . . . Launcher 9 | . 2 . . . 1 6 Special Weapon . | . . . . . . . Impact Weapon . | . . . . . . . Slashing Weapon 5 | . . 1 1 . 2 1 Piercing Weapon . | . . . . . . . Special Melee Weapon . | . . . . . . . Unidentified Prototypes 3 | . . . . . 2 1 Parts Lost 17 | . . . . . 4 13 Power 2 | . . . . . 1 1 Propulsion 5 | . . . . . 2 3 Utility 6 | . . . . . . 6 Weapon 4 | . . . . . 1 3 Highest Loss Streak 7 | . . . . . 3 7 To Critical Strikes . | . . . . . . . Average Slot Usage (%) 90 | . 76 100 100 100 81 89 Engine 9 | . 14 14 14 14 7 5 Treads 15 | . . . . . 18 34 Leg 12 | . . 19 28 28 10 . Wheel 2 | . 28 8 . . . . Device 1 | . . . . . 3 . Storage 9 | . 2 14 14 14 9 7 Processor 9 | . 3 14 14 14 9 6 Hackware 2 | . . . . . . 7 Protection 4 | . . . . . 5 9 Energy Gun 11 | . 24 22 24 28 4 . Ballistic Gun 7 | . . . . . 11 13 Slashing Weapon 1 | . . 5 3 . . . Peak Build Rating 57 | 5 8 25 28 28 34 57 Average Rating 30 | 3 5 15 26 28 27 44 On Entrance 18 | . 5 8 25 28 28 33 Naked Turns . | . . . . . . . Heaviest Build 63 | 6 27 39 39 39 50 63 Greatest Support 131 | 20 20 30 35 35 115 131 Greatest Overweight (x) 13 | . 1 1 1 1 13 9 Average Overweight (x) . | . . . 1 1 . . Largest Inventory Capacity 15 | 5 15 15 15 15 15 15 Average Capacity 14 | 5 6 15 15 15 15 15 Most Carried 15 | . 10 15 15 15 15 15 Average Carried 14 | . 4 13 14 15 14 14 Final Capacity 15 | 5 15 15 15 15 15 15 Final Carried 15 | . 10 15 15 15 15 13 Class Distribution -------------------- 45% | Mutant 41% | Scavenger-Mutant 12% | Hacker-Mutant Dominant Class ---------------- Mutant | -10/Materials Mutant | -10/Mines Scavenger-Mutant | -10/Exiles Scavenger-Mutant | -9/Mines Scavenger-Mutant | -8/Materials Mutant | -7/Factory Resources | -11 -10 -10 -10 -9 -8 -7 ----------- Run | Yrd Mat Min Exi Min Mat Fac Matter Collected 1771 | 250 81 144 60 . 487 749 Remotely . | . . . . . . . Salvage Created 2937 | 45 172 216 179 . 1186 1139 Parts 185 | 3 18 17 12 . 72 63 Haulers Intercepted 4 | . 1 . . . 2 1 Recyclers Shooed 4 | . . 1 . . 2 1 Parts Field Recycled . | . . . . . . . Retrieved Matter . | . . . . . . . Parts Self-Destructed . | . . . . . . . Prevented . | . . . . . . . Kills | -11 -10 -10 -10 -9 -8 -7 ------- Run | Yrd Mat Min Exi Min Mat Fac Combat Hostiles Destroyed 67 | 1 7 4 . . 23 32 Melee 4 | . . . . . 2 2 Guns 24 | 1 2 1 . . 12 8 Cannons 3 | . . . . . 2 1 AOE 35 | . 5 3 . . 6 21 Classes Destroyed 14 | 1 3 1 . . 4 5 Builder 1 | . . . . . 1 . Tunneler 4 | . 1 2 . . . 1 Hauler 4 | . 1 . . . 2 1 Recycler 7 | . . 1 . . 5 1 Mechanic 2 | . . . . . . 2 Operator 1 | . . . . . 1 . Swarmer 28 | . 6 4 . . 11 7 Grunt 12 | 1 1 . . . 5 5 Duelist 2 | . . . . . . 2 Protector 1 | . . . . . . 1 Sentry 9 | . . . . . 5 4 Specialist 3 | . . . . . . 3 Hunter 7 | . . . . . 2 5 Programmer 5 | . . . . . . 5 Thug 2 | . . 2 . . . . Best Kill Streak 11 | 1 6 3 . . 10 11 Combat Bots Only 9 | 1 3 3 . . 8 9 Max Kills in Single Turn 4 | 1 3 1 . . 4 4 Gunslinging . | . . . . . . . Exploded 4 | . 3 1 . . 4 3 Melee 1 | . . . . . 1 1 Uniques/NPCs Destroyed . | . . . . . . . Combat | -11 -10 -10 -10 -9 -8 -7 -------- Run | Yrd Mat Min Exi Min Mat Fac Hostile Shots Fired 643 | 1 20 13 . 9 132 468 Missed 221 | . 4 4 . 2 34 177 Damage Taken 4960 | 10 138 120 27 86 1237 3342 Core 770 | . 38 15 12 11 243 451 Absorbed by Shields . | . . . . . . . Ignored by Resistances 141 | . . . . . . 141 Core Remaining (%) 74 | 100 . . . 69 55 . Volleys Fired 159 | 1 21 6 11 . 67 53 Largest 2 | 2 2 2 2 . 2 2 Hottest 150 | 80 80 150 150 . 150 120 Shots Fired 294 | 2 39 12 20 . 119 102 Gun 255 | 2 34 9 20 . 107 83 Cannon 13 | . . . . . 9 4 Launcher 26 | . 5 3 . . 3 15 Special . | . . . . . . . Kinetic 142 | . . . . . 59 83 Thermal 109 | 1 18 9 20 . 57 4 Explosive 26 | . 5 3 . . 3 15 Electromagnetic 17 | 1 16 . . . . . Robot Hit Streak 10 | 2 7 2 7 . 10 10 Robot Miss Streak 5 | . 2 4 1 . 4 5 Penetration Max . | . . . . . . . Secondary Targets . | . . . . . . . Shots Hit Robots 204 | 2 20 14 16 . 78 74 Core Hits 182 | 2 9 11 4 . 45 111 Critical Kills . | . . . . . . . Critical Parts Destroyed . | . . . . . . . Critical Strikes 4 | . . . . . 1 3 Burn 1 | . . . . . 1 . Sever 3 | . . . . . . 3 Melee Attacks 46 | . . 10 20 . 3 13 Impact . | . . . . . . . Slashing 46 | . . 10 20 . 3 13 Piercing . | . . . . . . . Sneak Attacks 9 | . . 9 . . . . Combat Hostiles . | . . . . . . . Follow-up Attacks . | . . . . . . . Damage Inflicted 8821 | 24 502 630 453 . 1946 5266 Guns 2799 | 24 230 32 295 . 1247 971 Cannons 451 | . . . . . 315 136 Explosions 4432 | . 271 147 . . 266 3748 Melee 1119 | . . 451 143 . 114 411 Ramming 20 | . 1 . 15 . 4 . Kinetic 1629 | . . . . . 658 971 Thermal 2132 | 12 86 32 295 . 904 803 Explosive 3765 | . 271 147 . . 266 3081 Electromagnetic 156 | 12 144 . . . . . Impact . | . . . . . . . Slashing 1119 | . . 451 143 . 114 411 Piercing . | . . . . . . . Highest Corruption 6 | . . . 2 2 6 3 Average Corruption 3 | . . . 2 2 5 2 Corruption Purged . | . . . . . . . Corruption Blocked . | . . . . . . . Effects 23 | . . . 5 1 10 7 Message Errors 2 | . . . . . 1 1 Matter Fused 8 | . . . 1 . 5 2 Heat Flow Errors 2 | . . . . . 1 1 Energy Discharges 4 | . . . 2 . 1 1 Parts Rejected 2 | . . . . . . 2 Data Loss (minor) 1 | . . . 1 . . . Data Loss (major) 2 | . . . 1 . 1 . Alerts 2 | . . . . 1 1 . Overload Shots . | . . . . . . . Overflow Damage 434 | . 42 62 32 . 45 253 Projectiles 26 | . . . . . 26 . Explosions 314 | . 42 . . . 19 253 Melee 94 | . . 62 32 . . . Knockbacks . | . . . . . . . Impact . | . . . . . . . Kinetic . | . . . . . . . Secondary . | . . . . . . . Self-Inflicted Damage 289 | . . 46 15 . 29 199 Shots 8 | . . 2 . . 1 5 Rammed 2 | . 1 . . . 1 . Targets Rammed 2 | . 1 . . . 1 . Kicked . | . . . . . . . Crushed . | . . . . . . . Highest Temperature 464 | 18 66 288 464 . 345 201 Average Temperature 85 | 12 20 111 195 . 87 53 Received Heat Transfer 1311 | 6 24 . . 36 378 867 Effects 5 | . . 1 4 . . . Shutdowns 2 | . . . 2 . . . Energy Bleed 2 | . . 1 1 . . . Matter Decay 1 | . . . 1 . . . Siege Activations . | . . . . . . . Robots Corrupted 1 | . 1 . . . . . Combat Hostiles . | . . . . . . . Parts Fried 2 | . 2 . . . . . Impact Corruptions . | . . . . . . . Robots Melted 1 | . . . . . 1 . Combat Hostiles 1 | . . . . . 1 . Parts Melted 4 | . . 1 1 . 2 . Heat Transferred 3286 | 25 200 62 518 . 1830 651 Parts Sabotaged . | . . . . . . . Parts Stolen . | . . . . . . . Parts Stripped . | . . . . . . . Power Chain Reactions . | . . . . . . . Alert | -11 -10 -10 -10 -9 -8 -7 ------- Run | Yrd Mat Min Exi Min Mat Fac Peak Influence 1047 | 20 241 208 . 15 678 1047 Initial 259 | . 13 93 . . 5 259 Average 417 | 4 88 174 . 13 370 601 Maximum Alert Level 3 | . 1 1 . . 2 3 Low Security (%) 23 | 100 87 52 . 100 25 . Level 1 26 | . 12 47 . . 30 18 Level 2 37 | . . . . . 43 52 Level 3 12 | . . . . . . 28 Level 4 . | . . . . . . . Level 5 . | . . . . . . . High Security . | . . . . . . . Max Security . | . . . . . . . Squads Dispatched 12 | . 1 . . . 2 9 Investigation 3 | . . . . . 1 2 Extermination 2 | . . . . . . 2 Reinforcement 5 | . 1 . . . 1 3 Assault 2 | . . . . . . 2 Garrison . | . . . . . . . Intercept . | . . . . . . . Searches Triggered . | . . . . . . . Construction Impeded . | . . . . . . . Haulers Reinforced 1 | . . . . . . 1 Active Scanning Responses . | . . . . . . . Cargo Convoy Interrupts 1 | . . . . . . 1 Stealth | -11 -10 -10 -10 -9 -8 -7 --------- Run | Yrd Mat Min Exi Min Mat Fac Distress Signals 5 | . 1 . . . 2 2 Communications Jammed . | . . . . . . . Distress Signals . | . . . . . . . Times Spotted 104 | 1 10 5 . 3 38 47 Peak Tracking Total 10 | 1 4 3 . 3 10 10 Tactical Retreats 5 | . . 1 . . 4 . Traps | -11 -10 -10 -10 -9 -8 -7 ------- Run | Yrd Mat Min Exi Min Mat Fac Traps Triggered 3 | . . . . . 2 1 Indirectly . | . . . . . . . Trap Hack Attempts . | . . . . . . . Triggered . | . . . . . . . Disarmed . | . . . . . . . Reprogrammed . | . . . . . . . Reused . | . . . . . . . Traps Extracted . | . . . . . . . Installed . | . . . . . . . Triggered . | . . . . . . . Machines | -11 -10 -10 -10 -9 -8 -7 ---------- Run | Yrd Mat Min Exi Min Mat Fac Machines Disabled 25 | . . . 1 . 3 21 Max in Single Turn 11 | . . . 1 . 1 11 Garrison Access 1 | . . . . . 1 . Machines Repaired . | . . . . . . . Machines Dismantled . | . . . . . . . Machines Sabotaged . | . . . . . . . Overloaded Fab Kills . | . . . . . . . Hacking | -11 -10 -10 -10 -9 -8 -7 --------- Run | Yrd Mat Min Exi Min Mat Fac Machines Accessed 5 | . . . 1 . 2 2 Terminals 3 | . . . . . 1 2 Fabricators . | . . . . . . . Repair Stations . | . . . . . . . Recycling Units . | . . . . . . . Scanalyzers . | . . . . . . . Garrison Access 1 | . . . . . 1 . Total Hacks 10 | . . . 1 . 4 5 Successful 4 | . . . 1 . 3 . Failed 6 | . . . . . 1 5 Catastrophic 3 | . . . . . . 3 Database Lockouts . | . . . . . . . Manual 8 | . . . 1 . 3 4 Terminals 7 | . . . . . 2 5 Fabricators . | . . . . . . . Repair Stations . | . . . . . . . Recycling Units . | . . . . . . . Scanalyzers . | . . . . . . . Garrison Access 2 | . . . . . 2 . Terminal Hacks 3 | . . . 1 . 2 . Robot Analysis 2 | . . . . . 2 . Derelict Proto ID Bank 1 | . . . 1 . . . Fabricator Hacks . | . . . . . . . Repair Station Hacks . | . . . . . . . Recycling Unit Hacks . | . . . . . . . Scanalyzer . | . . . . . . . Garrison Access Hacks 1 | . . . . . 1 . Seal Access 1 | . . . . . 1 . Unauthorized Hacks . | . . . . . . . Terminals . | . . . . . . . Fabricators . | . . . . . . . Repair Stations . | . . . . . . . Recycling Units . | . . . . . . . Scanalyzers . | . . . . . . . Garrison Access . | . . . . . . . Data Cores Recovered 1 | . . . . . 1 . Used 1 | . . . . . 1 . Hacking Detections 3 | . . . . . 1 2 Full Trace Events 2 | . . . . . 1 1 Feedback Events . | . . . . . . . Feedback Blocked . | . . . . . . . Robot Schematics Acquired . | . . . . . . . Robots Built . | . . . . . . . Authchips . | . . . . . . . Time . | . . . . . . . Total Robot Build Rating . | . . . . . . . Part Schematics Acquired . | . . . . . . . Parts Built . | . . . . . . . Authchips . | . . . . . . . Time . | . . . . . . . Total Part Build Rating . | . . . . . . . Parts Repaired . | . . . . . . . Time . | . . . . . . . Parts Recycled . | . . . . . . . Recycled Matter . | . . . . . . . Retrieved Matter . | . . . . . . . Retrieved Components . | . . . . . . . Parts Scanalyzed . | . . . . . . . Part Schematics Acquired . | . . . . . . . Parts Damaged . | . . . . . . . Bothacking | -11 -10 -10 -10 -9 -8 -7 ------------ Run | Yrd Mat Min Exi Min Mat Fac Used RIF Installer . | . . . . . . . Robots Hacked . | . . . . . . . Non-combat . | . . . . . . . Combat . | . . . . . . . Robot Hacks Applied . | . . . . . . . Relay Couplers Released . | . . . . . . . Fabnet Peak Effective % . | . . . . . . . Robots Rewired . | . . . . . . . Allies Hacked . | . . . . . . . Hacks Repelled . | . . . . . . . Allies | -11 -10 -10 -10 -9 -8 -7 -------- Run | Yrd Mat Min Exi Min Mat Fac Total Allies 4 | . . 4 . . . . Largest Group 3 | . . 3 . . . . Highest-Rated Group 40 | . . 40 . . . . Highest-Rated Ally 28 | . . 28 . . . . Total Orders . | . . . . . . . Ally Attacks 17 | . . 17 . . . . Total Damage 148 | . . 148 . . . . Kills 2 | . . 2 . . . . Allies Corrupted . | . . . . . . . Allies Melted . | . . . . . . . Intel | -11 -10 -10 -10 -9 -8 -7 ------- Run | Yrd Mat Min Exi Min Mat Fac Robot Analysis Total 2 | . . . . . 2 . Derelict Logs Recovered 1 | . . 1 . . . . Drone Launches . | . . . . . . . Drone Recoveries . | . . . . . . . Exploration | -11 -10 -10 -10 -9 -8 -7 ------------- Run | Yrd Mat Min Exi Min Mat Fac Turns Passed 4618 | 56 215 485 1210 12 1171 1469 Spaces Moved 2320 | 60 153 319 565 7 488 728 Core 26 | 19 . . . . 6 1 Treads 1005 | . . . . . 278 727 Legs 973 | . . 197 565 7 204 . Wheels 316 | 41 153 122 . . . . Hover . | . . . . . . . Flight . | . . . . . . . Fastest Speed 50 | 50 80 95 190 200 130 160 Average Speed 165 | 70 82 130 197 200 187 165 Slowest Speed 700 | 80 95 190 200 200 700 500 Overloaded Moves . | . . . . . . . Propulsion Burnouts . | . . . . . . . Robots Hopped . | . . . . . . . Cave-ins Triggered . | . . . . . . . Exploration Rate (%) 39 | 6 35 65 92 4 53 23 Regions Visited 6 Branch Regions 3 Pre-discovered Areas . | . . . . . . . Known Exits Taken . | . . . . . . . Unknown Exits Taken 6 | 1 1 1 1 1 1 . Scrap Searched 3 | . . 3 . . . . Spaces Dug . | . . . . . . . Terrain Destroyed 300 | . 18 19 36 . 43 184 Melee . | . . . . . . . Projectile . | . . . . . . . AOE 300 | . 18 19 36 . 43 184 Terrain Rammed 1 | . . . 1 . . . Walls Destroyed . | . . . . . . . Machines Disabled . | . . . . . . . Actions | -11 -10 -10 -10 -9 -8 -7 --------- Run | Yrd Mat Min Exi Min Mat Fac Total 2792 | 68 199 357 624 6 636 902 Wait 98 | 3 10 2 15 . 22 46 Move 2314 | 59 152 318 564 6 487 728 Hop . | . . . . . . . Pick Up 41 | . 10 6 4 . 9 12 Fast Attach 20 | 5 2 . . . 6 7 Attach 5 | . . . . . 2 3 Detach . | . . . . . . . Swap 63 | . 3 10 3 . 23 24 Drop 42 | . . 5 5 . 16 16 Fire 159 | 1 21 6 11 . 67 53 Melee 46 | . . 10 20 . 3 13 Ram 2 | . 1 . 1 . . . Kick . | . . . . . . . Crush 1 | . . . . . 1 . Escape Stasis . | . . . . . . . Rewire 1 | . . . 1 . . . Trap . | . . . . . . . Miscellaneous . | . . . . . . . Route ------- -11/Scrapyard -10/Materials (discovered 2 exits: [*Min x2]) -10/Mines -10/Exiles -9/Mines -8/Materials -7/Factory (discovered 1 exit: [*Low]) History --------- Turn | Location | Event 2 | -11/Scrapyard | Met Revision 17 41 | -11/Scrapyard | Discovered new exit (range 8) 57 | -11/Scrapyard | Entered Materials 57 | -10/Materials | Discovered new exit (range 7) 224 | -10/Materials | Discovered new exit (range 11) 272 | -10/Materials | Entered Mines 314 | -10/Mines | Build established: Mutant 321 | -10/Mines | Met a Derelict bent on vengeance 494 | -10/Mines | Found a hidden stash of uninstalled traps 546 | -10/Mines | Received a Mining Laser from a helpful Derelict 618 | -10/Mines | Learned Materials security intel 659 | -10/Mines | Assisted by bots powering up and referring to "LRC-V3" 733 | -10/Mines | Found a damaged Exp. Sensor Array with a note attached 741 | -10/Mines | Found Prototype Device 748 | -10/Mines | Deemed a non-threat by the Exiles lab entrance 750 | -10/Mines | Discovered new exit (range 5) 757 | -10/Mines | Entered Exiles 757 | -10/Exiles | Found Exiles lab destroyed 855 | -10/Exiles | Build established: Scavenger-Mutant 951 | -10/Exiles | Opened EX-Vault 966 | -10/Exiles | Found Gui. Plasma Cannon 1550 | -10/Exiles | Build established: Mutant 1904 | -10/Exiles | Build established: Scavenger-Mutant 1937 | -10/Exiles | Discovered new exit (range 14) 1967 | -10/Exiles | Entered Mines 1967 | -9/Mines | Discovered new exit (range 6) 1979 | -9/Mines | Entered Materials 1979 | -8/Materials | Evolved 4 slots: Propulsion x3, Utility x1 2419 | -8/Materials | Lost 3 parts (2n1w) 2689 | -8/Materials | Destroyed 8 combat bots 3081 | -8/Materials | Discovered new exit (range 16) 3150 | -8/Materials | Entered Factory 3150 | -7/Factory | Evolved 2 slots: Utility x2 3347 | -7/Factory | Build established: Mutant 3781 | -7/Factory | Found Prototype Launcher 3781 | -7/Factory | Identified Rocket Array 3950 | -7/Factory | First assault squad dispatched 4062 | -7/Factory | Discovered new exit (range 6) 4198 | -7/Factory | Cargo convoy interrupted 4231 | -7/Factory | Destroyed 9 combat bots 4269 | -7/Factory | Build established: Hacker-Mutant 4476 | -7/Factory | Lost 3 parts (1n1u1w) 4606 | -7/Factory | Core integrity fell below 50% 4619 | -7/Factory | Self-destructed Last Messages --------------- 04608_ Acquired Arm. Medium Treads. 04611_ Penetrated by Slug. 04611_ Arm. Medium Treads destroyed. 04611_ M-28 Smith repairs Imp. Deuterium Engine. 04612_ U-05 Engineer lays Concrete. 04612_ U-05 Engineer builds a Wall. 04612_ U-05 Engineer lays Concrete. 04612_ R-06 Scavenger collects Imp. Heat Sink. 04613_ U-05 Engineer lays Concrete. 04613_ Penetrated by Slug. 04613_ U-05 Engineer lays Concrete. 04614_ M-28 Smith repairs G-47 Trooper. 04614_ U-05 Engineer builds a Wall. 04615_ U-05 Engineer lays Concrete. 04615_ Critical hit (Burn: +37). 04616_ U-05 Engineer lays Concrete. 04617_ M-28 Smith repairs M-28 Smith. 04618_ U-05 Engineer lays Concrete. 04619_ U-05 Engineer builds a Wall. 04619_ U-05 Engineer lays Concrete. Map ----- +----------------------------------------------------+ | # #??????????????????? | | " """ """ # #??????????????????? | | " """ """ # #??????????????????? | | " """ """ # #??????????????????? | | """""" """""" #??????????????????? | | # """""" """""" #??????????????????? | | ##### """""" """""" #??????????????????? | | # """""" """""" #??????????????????? | | # #??????????????????? | | "" # #??????????????????? | | "" # #% % #???###????????????? | | " # = / #?? #????????????? | | # ##### #?? #????????????? | | ##### ""??????#####+## #? #????????????? | | ????? "??????????? # #? #????????????? | | ?????????????????? # # #????????????? | | ?????????? ??? # # #????????????? | | ????????? # + #????????????? | | ???????? # # #?????"??????? | | ???????? # # #????? ?????? | | ######## ########"## #? #??###/#####?? | | *#[ # #? #?? | | """""" # ; t#?? #?? | | [%# #??####?? | | """"" + #???????? | | % #@ #???????# | | """" ! % # #???????# | | [ # ######### | | ############# # =%[ # x | | ????# # #### # ## x | | ???####"#### | | ??? ## # # | | ?? ##* #[ ### | | ?? ## # + #######+########### ###??? | | ? ## # # ## ! ? ????????# #????? | | ? ?# # # ## ????????# #????? | | """" ?# =#####+## ## """" ""????????# #????? | | """" ## !=#???# ## """" """???????# #????? | | """" ####+##### ## """" """"??????# #????? | | """" # [ [ ## """" """" #???# #????? | | """" # [ ## #???# #????? | | ?"""" # ## """" """" #???# #????? | | ? # + """" """"??????# #????? | | ?? # ##### T####### """" """???##### #????? | | ?? # #???####?????# """" ""????+ / +??? ? | | ####### #????????????# ????### #??" ? | | ??# #????????????####+####??????# """ #?"" | | ] # ################# ########### """ # """ | | ] | + " # """ | | ! [ # ##### "F" + """ | +----------------------------------------------------+ Best States ------------- Heat Dissipation 45 Energy Generation 18 Energy Capacity 290 Matter Stores 300 Matter Capacity 300 Sight Range 16 Terrain Scan Density 10 Jamming Range 12 Armor Coverage 525 Resistance: KI 20 Resistance: EM 20 Evasion (%) 55 Targeting Accuracy 5 Recoil Reduction 5 Offensive Hacking 20 Defensive Hacking 10 Item Schematics ----------------- None Robot Schematics ------------------ None Fabricated ------------ Nothing Alien Tech Used ----------------- None Achievements -------------- None Challenges ------------ None Game ------ Seed SuspensionLatentExpander Manual? 0 Play Time 00:31:56 Cumulative 99.6 hours Start 2024.09.25 @ 10:55:14 End 2024.09.25 @ 19:22:52 Sessions 1 Manual Loads 0 Difficulty Rogue Special Mode None Game No. 170 Rogue 170 Adventurer 0 Explorer 0 Win Type - Total 0 Types 0/0/0/0/0/0/0/0/0 Lore% 48 Gallery% 51 Achievement% 41 Wizard Run 0 Options --------- Layout 0 ASCII 0 Keyboard 1 Movement Numpad Keybinds 0 Fullscreen 2 Font 18/SmallcapsGlow Map View 76x50 Zoom Use 0% Tactical HUD 1 Map Filters NONE Filters NONE Steam 1 RUN: 0a4cd76a-dc06-40ee-a120-80846553af46